Cogmind - Beta 12 @@@ ROGUE MODE // 2023.05.19 @ 20:14:45 Player: Mr Goldstein Result: Self-destructed Performance ------------- Evolutions (0) 0 Regions Visited (4) 800 Robots Destroyed (41) 205 Value Destroyed (1006) 1006 Prototype IDs (25) 500 Alien Tech Used (0) 0 Bonus (290) 290 TOTAL SCORE: 2801 Bonus ------- High Alert Combat Kills 8 Aligned with FarCom 300 Friendly Fire -18 Cogmind --------- Core Integrity 6/250 Matter 300/300 Energy 250/250 System Corruption 1% Temperature Cool (0) Movement Rolling (115) Ox1 Location -9/Mines Parts ------- > --- POWER (1) -------- Ion Engine > --- PROPULSION (2) --- Compact Wheel Compact Wheel > --- UTILITY (2) ------ High-capacity Storage Unit Weapon Shielding > --- WEAPON (2) ------- Assault Rifle Assault Rifle > --- INVENTORY (20) --- Ion Engine Light Ion Engine Wheel Compact Wheel Compact Wheel Medium Matter Pod (100) Propulsion Shielding Propulsion Shielding Utility Shielding Weapon Shielding Weapon Shielding Assault Rifle Light Assault Rifle Light Assault Rifle Improved Light Cannon Improved Light Cannon Improved Light Cannon Improved Light Cannon Field Lobotomy Kit (5) Plasma Cutter Peak State ------------ > --- POWER ------------ Ion Engine > --- PROPULSION ------- Compact Wheel Compact Wheel > --- UTILITY ---------- High-capacity Storage Unit Weapon Shielding > --- WEAPON ----------- Improved Light Cannon Field Lobotomy Kit > --- INVENTORY -------- Ion Engine Light Ion Engine Wheel Compact Wheel Compact Wheel Medium Matter Pod Propulsion Shielding Propulsion Shielding Utility Shielding Weapon Shielding Weapon Shielding Assault Rifle Assault Rifle Assault Rifle Light Assault Rifle Light Assault Rifle Improved Light Cannon Improved Light Cannon Improved Light Cannon Plasma Cutter [Rating: 19] Favorites ----------- Power Ion Engine Engine Ion Engine Propulsion Wheel Wheel Wheel Utility High-capacity Storage Unit Storage High-capacity Storage Unit Protection Weapon Shielding Weapon Improved Light Cannon Ballistic Gun Assault Rifle Ballistic Cannon Improved Light Cannon Special Weapon Field Lobotomy Kit Build | -11 -10 -10 -10 -9 ------- Run | Jun Mat Min Exi Min Slots Evolved . | . . . . . Power . | . . . . . Propulsion . | . . . . . Utility . | . . . . . Weapon . | . . . . . Parts Attached 24 | 6 14 . 4 . Power 3 | 1 2 . . . Engine 3 | 1 2 . . . Core . | . . . . . Reactor . | . . . . . Propulsion 7 | 2 5 . . . Treads . | . . . . . Leg . | . . . . . Wheel 7 | 2 5 . . . Hover . | . . . . . Flight . | . . . . . Utility 6 | 1 5 . . . Device . | . . . . . Storage 2 | 1 1 . . . Processor . | . . . . . Hackware . | . . . . . Protection 4 | . 4 . . . Artifact . | . . . . . Weapon 8 | 2 2 . 4 . Energy Gun . | . . . . . Energy Cannon . | . . . . . Ballistic Gun 4 | 2 . . 2 . Ballistic Cannon 3 | . 2 . 1 . Launcher . | . . . . . Special Weapon 1 | . . . 1 . Impact Weapon . | . . . . . Slashing Weapon . | . . . . . Piercing Weapon . | . . . . . Special Melee Weapon . | . . . . . Unidentified Prototypes . | . . . . . Parts Lost 5 | . 5 . . . Power . | . . . . . Propulsion 4 | . 4 . . . Utility 1 | . 1 . . . Weapon . | . . . . . Highest Loss Streak 1 | . 1 . . . To Critical Strikes . | . . . . . Average Slot Usage (%) 96 | . 97 100 80 100 Engine 14 | . 14 14 14 14 Wheel 26 | . 25 28 28 28 Storage 14 | . 14 14 14 14 Protection 13 | . 13 14 14 14 Ballistic Gun 9 | . 13 . 2 28 Ballistic Cannon 16 | . 14 28 2 . Naked Turns . | . . . . . Heaviest Build 56 | 13 56 54 54 50 Greatest Support 32 | 20 32 32 32 32 Greatest Overweight (x) 5 | 2 5 1 1 1 Average Overweight (x) 1 | . 1 1 1 1 Largest Inventory Capacity 20 | 8 20 20 20 20 Average Capacity 18 | 7 18 20 20 20 Most Carried 20 | 1 19 19 20 20 Average Carried 13 | . 11 19 19 20 Final Capacity 20 | 8 20 20 20 20 Final Carried 20 | 1 19 19 20 20 Class Distribution -------------------- 100% | Mutant Dominant Class ---------------- Mutant | -10/Materials Mutant | -10/Mines Mutant | -10/Exiles Mutant | -9/Mines Resources | -11 -10 -10 -10 -9 ----------- Run | Jun Mat Min Exi Min Matter Collected 1034 | 260 677 48 . 49 Remotely . | . . . . . Salvage Created 1261 | . 1189 72 . . Parts 85 | . 79 6 . . Haulers Intercepted 2 | . 2 . . . Recyclers Shooed 1 | . 1 . . . Parts Field Recycled . | . . . . . Retrieved Matter . | . . . . . Parts Self-Destructed . | . . . . . Prevented . | . . . . . Kills | -11 -10 -10 -10 -9 ------- Run | Jun Mat Min Exi Min Combat Hostiles Destroyed 27 | . 25 2 . . Guns 14 | . 14 . . . Cannons 12 | . 10 2 . . AOE 1 | . 1 . . . Classes Destroyed 8 | . 8 . . . Worker 3 | . 3 . . . Builder 2 | . 2 . . . Tunneler 2 | . 1 1 . . Hauler 2 | . 2 . . . Recycler 3 | . 3 . . . Watcher 2 | . 2 . . . Swarmer 3 | . 3 . . . Grunt 24 | . 22 2 . . Best Kill Streak 3 | . 3 3 . . Combat Bots Only 3 | . 3 2 . . Max Kills in Single Turn 2 | . 2 1 . . Gunslinging . | . . . . . Exploded 1 | . 1 . . . Melee . | . . . . . Uniques/NPCs Destroyed . | . . . . . Combat | -11 -10 -10 -10 -9 -------- Run | Jun Mat Min Exi Min Damage Taken 971 | . 874 97 . . Core 244 | . 216 28 . . Absorbed by Shields . | . . . . . Redirected to Shielding 41 | . 30 11 . . Regen/Repaired (Parts) 95 | . 95 . . . Core Remaining (%) 100 | 100 . . . . Volleys Fired 107 | . 101 6 . . Largest 2 | . 2 2 . . Hottest 78 | . 78 78 . . Shots Fired 215 | . 202 12 1 . Gun 128 | . 128 . . . Cannon 87 | . 74 12 1 . Launcher . | . . . . . Special . | . . . . . Kinetic 215 | . 202 12 1 . Thermal . | . . . . . Explosive . | . . . . . Electromagnetic . | . . . . . Robot Hit Streak 22 | . 22 4 5 . Robot Miss Streak 6 | . 6 1 . . Penetration Max . | . . . . . Secondary Targets 2 | . 2 . . . Max Gunslinging Chain 1 | . 1 . . . Shots Hit Robots 124 | . 116 7 1 . Core Hits 59 | . 55 4 . . Critical Kills 3 | . 3 . . . Critical Parts Destroyed . | . . . . . Critical Strikes 5 | . 5 . . . Destroy 3 | . 3 . . . Blast 2 | . 2 . . . Melee Attacks . | . . . . . Impact . | . . . . . Slashing . | . . . . . Piercing . | . . . . . Sneak Attacks . | . . . . . Combat Hostiles . | . . . . . Follow-up Attacks . | . . . . . Damage Inflicted 1996 | . 1828 150 18 . Guns 790 | . 790 . . . Cannons 1103 | . 935 150 18 . Explosions 103 | . 103 . . . Melee . | . . . . . Ramming . | . . . . . Kinetic 1893 | . 1725 150 18 . Thermal . | . . . . . Explosive . | . . . . . Electromagnetic 103 | . 103 . . . Impact . | . . . . . Slashing . | . . . . . Piercing . | . . . . . Highest Corruption 1 | . 1 1 1 1 Average Corruption 1 | . 1 1 1 1 Corruption Purged . | . . . . . Corruption Blocked . | . . . . . Effects 10 | . 6 2 2 . Message Errors 4 | . 3 1 . . Matter Fused 1 | . . . 1 . Heat Flow Errors 2 | . 2 . . . Energy Discharges 1 | . 1 . . . Data Loss (major) 1 | . . 1 . . Misfires 1 | . . . 1 . Overload Shots . | . . . . . Overflow Damage . | . . . . . Projectiles . | . . . . . Explosions . | . . . . . Melee . | . . . . . Knockbacks 10 | . 9 . 1 . Impact . | . . . . . Kinetic 10 | . 9 . 1 . Secondary . | . . . . . Self-Inflicted Damage . | . . . . . Shots . | . . . . . Rammed . | . . . . . Targets Rammed . | . . . . . Kicked . | . . . . . Crushed . | . . . . . Highest Temperature 378 | . 378 147 . . Average Temperature 56 | . 55 73 . . Received Heat Transfer 504 | . 447 57 . . Effects 1 | . 1 . . . Short Circuit 1 | . 1 . . . Siege Activations . | . . . . . Robots Corrupted . | . . . . . Combat Hostiles . | . . . . . Parts Fried . | . . . . . Impact Corruptions . | . . . . . Robots Melted . | . . . . . Combat Hostiles . | . . . . . Parts Melted . | . . . . . Heat Transferred . | . . . . . Parts Sabotaged . | . . . . . Parts Stolen . | . . . . . Parts Stripped . | . . . . . Power Chain Reactions . | . . . . . Missiles Intercepted . | . . . . . Alert | -11 -10 -10 -10 -9 ------- Run | Jun Mat Min Exi Min Peak Influence 419 | . 419 194 . . Initial 139 | . . 139 . . Average 160 | . 181 132 . . Maximum Alert Level 2 | . 2 . . . Low Security (%) 72 | 100 61 100 . 100 Level 1 23 | . 33 . . . Level 2 3 | . 5 . . . Level 3 . | . . . . . Level 4 . | . . . . . Level 5 . | . . . . . High Security . | . . . . . Max Security . | . . . . . Squads Dispatched 9 | . 9 . . . Investigation 8 | . 8 . . . Extermination . | . . . . . Reinforcement 1 | . 1 . . . Assault . | . . . . . Garrison . | . . . . . Intercept . | . . . . . Searches Triggered . | . . . . . Construction Impeded . | . . . . . Haulers Reinforced . | . . . . . Active Scanning Responses . | . . . . . Cargo Convoy Interrupts . | . . . . . Stealth | -11 -10 -10 -10 -9 --------- Run | Jun Mat Min Exi Min Distress Signals 3 | . 3 . . . Communications Jammed . | . . . . . Distress Signals . | . . . . . Times Spotted 38 | . 36 2 . . Peak Tracking Total 4 | . 4 2 . . Tactical Retreats 2 | . 2 . . . Traps | -11 -10 -10 -10 -9 ------- Run | Jun Mat Min Exi Min Traps Triggered 3 | . 3 . . . Indirectly . | . . . . . Trap Hack Attempts . | . . . . . Triggered . | . . . . . Disarmed . | . . . . . Reprogrammed . | . . . . . Reused . | . . . . . Traps Extracted . | . . . . . Installed . | . . . . . Triggered . | . . . . . Machines | -11 -10 -10 -10 -9 ---------- Run | Jun Mat Min Exi Min Machines Disabled 4 | . 4 . . . Max in Single Turn 2 | . 2 . . . Machines Repaired . | . . . . . Machines Sabotaged . | . . . . . Overloaded Fab Kills . | . . . . . Hacking | -11 -10 -10 -10 -9 --------- Run | Jun Mat Min Exi Min Machines Accessed 10 | . 9 . 1 . Terminals 7 | . 7 . . . Fabricators . | . . . . . Repair Stations 1 | . 1 . . . Recycling Units 1 | . 1 . . . Scanalyzers . | . . . . . Garrison Access . | . . . . . Total Hacks 32 | . 31 . 1 . Successful 7 | . 6 . 1 . Failed 24 | . 24 . . . Catastrophic 3 | . 3 . . . Database Lockouts 1 | . 1 . . . Manual 27 | . 26 . 1 . Terminals 26 | . 26 . . . Fabricators . | . . . . . Repair Stations 3 | . 3 . . . Recycling Units 2 | . 2 . . . Scanalyzers . | . . . . . Garrison Access . | . . . . . Terminal Hacks 3 | . 2 . 1 . Robot Analysis 1 | . 1 . . . Prototype ID Bank 1 | . 1 . . . EX-Prototype ID Bank 1 | . . . 1 . Fabricator Hacks . | . . . . . Repair Station Hacks 2 | . 2 . . . Scan Component 1 | . 1 . . . Repair 1 | . 1 . . . Recycling Unit Hacks . | . . . . . Scanalyzer . | . . . . . Garrison Access Hacks . | . . . . . Unauthorized Hacks 2 | . 2 . . . Terminals 1 | . 1 . . . Disrupt 1 | . 1 . . . Fabricators . | . . . . . Repair Stations . | . . . . . Recycling Units 1 | . 1 . . . Tunnel 1 | . 1 . . . Scanalyzers . | . . . . . Garrison Access . | . . . . . Data Cores Recovered . | . . . . . Used . | . . . . . Hacking Detections 8 | . 8 . . . Full Trace Events 7 | . 7 . . . Feedback Events 1 | . 1 . . . Corruption 1 | . 1 . . . Feedback Blocked . | . . . . . Robot Schematics Acquired . | . . . . . Robots Built . | . . . . . Authchips . | . . . . . Time . | . . . . . Total Robot Build Rating . | . . . . . Part Schematics Acquired . | . . . . . Parts Built . | . . . . . Authchips . | . . . . . Time . | . . . . . Total Part Build Rating . | . . . . . Parts Repaired 1 | . 1 . . . Time 26 | . 26 . . . Parts Recycled . | . . . . . Recycled Matter . | . . . . . Retrieved Matter . | . . . . . Retrieved Components . | . . . . . Parts Scanalyzed . | . . . . . Part Schematics Acquired . | . . . . . Parts Damaged . | . . . . . Bothacking | -11 -10 -10 -10 -9 ------------ Run | Jun Mat Min Exi Min Used RIF Installer . | . . . . . Robots Hacked . | . . . . . Non-combat . | . . . . . Combat . | . . . . . Robot Hacks Applied . | . . . . . Relay Couplers Released . | . . . . . Fabnet Peak Effective % . | . . . . . Robots Rewired . | . . . . . Allies Hacked . | . . . . . Hacks Repelled . | . . . . . Allies | -11 -10 -10 -10 -9 -------- Run | Jun Mat Min Exi Min Total Allies 5 | . . 5 . . Largest Group 5 | . . 5 5 3 Highest-Rated Group 78 | . . 78 78 40 Highest-Rated Ally 31 | . . 31 31 16 Total Orders . | . . . . . Ally Attacks . | . . . . . Total Damage . | . . . . . Kills . | . . . . . Allies Corrupted . | . . . . . Allies Melted . | . . . . . Intel | -11 -10 -10 -10 -9 ------- Run | Jun Mat Min Exi Min Robot Analysis Total 1 | . 1 . . . Derelict Logs Recovered 2 | . . 2 . . Drone Launches . | . . . . . Drone Recoveries . | . . . . . Exploration | -11 -10 -10 -10 -9 ------------- Run | Jun Mat Min Exi Min Turns Passed 2688 | 66 1733 577 260 52 Spaces Moved 1789 | 70 988 466 220 45 Core 12 | 12 . . . . Treads . | . . . . . Legs . | . . . . . Wheels 1777 | 58 988 466 220 45 Hover . | . . . . . Flight . | . . . . . Fastest Speed 50 | 50 80 115 115 115 Average Speed 111 | 80 110 115 115 115 Slowest Speed 155 | 150 155 115 115 115 Overloaded Moves . | . . . . . Propulsion Burnouts . | . . . . . Robots Hopped . | . . . . . Cave-ins Triggered . | . . . . . Exploration Rate (%) 48 | 4 96 83 41 18 Regions Visited 4 Branch Regions 3 Pre-discovered Areas 1 | . 1 . . . Known Exits Taken . | . . . . . Unknown Exits Taken 4 | 1 1 1 1 . Scrap Searched 4 | . . 2 . 2 Spaces Dug . | . . . . . Terrain Destroyed 2 | . 2 . . . Melee . | . . . . . Projectile 2 | . 2 . . . AOE . | . . . . . Terrain Rammed . | . . . . . Walls Destroyed . | . . . . . Machines Disabled . | . . . . . Actions | -11 -10 -10 -10 -9 --------- Run | Jun Mat Min Exi Min Total 2275 | 76 1433 495 226 45 Wait 331 | . 307 24 . . Move 1785 | 69 987 465 219 45 Hop . | . . . . . Pick Up 20 | 1 19 . . . Fast Attach 14 | 6 6 . 2 . Attach 2 | . 2 . . . Detach 3 | . 1 . 2 . Swap 8 | . 6 . 2 . Drop 5 | . 4 . 1 . Fire 107 | . 101 6 . . Melee . | . . . . . Ram . | . . . . . Kick . | . . . . . Crush . | . . . . . Escape Stasis . | . . . . . Rewire . | . . . . . Trap . | . . . . . Miscellaneous . | . . . . . Route ------- -11/Junkyard -10/Materials (discovered 4 exits: *Mat x3 / [*Min]) -10/Mines (discovered 2 exits: Mat / *Exi) -10/Exiles -9/Mines History --------- Turn | Location | Event 22 | -11/Junkyard | Discovered new exit (range 16) 67 | -11/Junkyard | Entered Materials 205 | -10/Materials | Central database locked down 304 | -10/Materials | Build established: Mutant 527 | -10/Materials | Discovered new exit (range 15) 630 | -10/Materials | Core integrity fell below 50% 910 | -10/Materials | Discovered new exit (range 7) 1186 | -10/Materials | Discovered new exit (range 8) 1281 | -10/Materials | Repaired Assault Rifle 1565 | -10/Materials | Core integrity fell below 20% 1712 | -10/Materials | Discovered new exit (range 15) 1800 | -10/Materials | Entered Mines 1841 | -10/Mines | Found a damaged Exp. Sensor Array with a note attached 1847 | -10/Mines | Learned location of 1 exit from Materials 2101 | -10/Mines | Assisted by bots powering up and referring to "LRC-V3" 2276 | -10/Mines | Identified exit to Materials 2347 | -10/Mines | Deemed a non-threat by the Exiles lab entrance 2347 | -10/Mines | Discovered new exit (range 5) 2377 | -10/Mines | Entered Exiles 2377 | -10/Exiles | Accompanied by 5 allies 2407 | -10/Exiles | Led the pair of lost Derelicts to a safe place 2409 | -10/Exiles | Met 8R-AWN 2428 | -10/Exiles | Met EX-HEX 2462 | -10/Exiles | Met EX-BIN 2476 | -10/Exiles | Aligned with FarCom system 2477 | -10/Exiles | Given EX-Vault access code 2504 | -10/Exiles | Opened EX-Vault 2510 | -10/Exiles | Found Field Lobotomy Kit 2535 | -10/Exiles | Warned to stay clear of 0b10 Research branches 2620 | -10/Exiles | Discovered new exit (range 15) 2637 | -10/Exiles | Left Exiles lab with Field Lobotomy Kit 2637 | -10/Exiles | Entered Mines 2637 | -9/Mines | Accompanied by 3 allies 2689 | -9/Mines | Self-destructed Last Messages --------------- gonna change it right after you leave. Most certainly not to something like 1234 which I did last time as a little joke and some thief managed to sneak in here and steal a few of HEX's prototypes. 02613_ Acquired Imp. Light Cannon. 02620_ EXIT=FOUND LOCATION=UNKNOWN GOAL=ESCAPE 02637_ Receiving FarCom transmissions... 02638_ T-07 Excavator is excavating. 02640_ Searching scrap... 02640_ Found Plasma Cutter. 02640_ Found Imp. Ion Engine. 02640_ Found 25 Matter. 02641_ Acquired 25 matter. 02641_ T-07 Excavator is excavating. 02687_ Searching scrap... 02687_ Found Spread Laser. 02687_ Found 34 Matter. 02687_ Found 12 Matter. 02688_ Acquired 12 matter. Map ----- +----------------------------------------------------+ | ????????????????????????????????? | | ????????????????????????????????? | | ????????????????????????????????? | | ????????????????????????????????? | | ????????????????????????????????? | | ????????????????????????????????? | | ????????????????????????????????? | | ????????????????????????????????? | | ????????????????????????????????? | | ????????????????????????????????? | | ????????????????????????????????? | | ????????????????????????????????? | | ????????????????????????????????? | | ????????????????????????????????? | | ????????????????????????????????? | | ????????????????????????????????? | | ????????????????s?ss??s?????????? | | ????????????????????????????????? | | ????????????????????????????????? | | ????????????????????????###?????? | | ???????????????????????? #?????? | | ????????????????????????# #?????? | | ????????????????????????# #?????? | | ????????????????????????#[#?????? | | ????????????????????????# #?????? | | ????????????????????????#@#?????? | | ????????????????????????#g#?????? | | ??????????????###???????#g#?????? | | ?????????????## #??????# #?????? | | ????????????## #?#####g#?????? | | ????????????# ?# #?????? | | ??????##????# ## ### ##????? | | ??????? ?????# # ### #????? | | ??????? ###### #????? | | ???????? #?# #????? | | ????????? ? #?## ## #???? | | ?????????# ?# ##### #### #??? | | ?????????# ## #### #??# #?? | | ?????????# ### #??# #?? | | ??????????# #?? #?? | | ??????????## #?? #?? | | ???????????## ######??""" ##?? | | ???????####?## #???????""" #??? | | ??????## ##?# #???????""" #??? | | ???#### ### #?????????? #??? | | ??## ## #?????????? #??? | | ### # #???????????##??? | | #???????????????? | | ## ????????? | | ### * | ## #???????? | +----------------------------------------------------+ Best States ------------- Heat Dissipation 25 Energy Generation 10 Energy Capacity 250 Matter Stores 300 Matter Capacity 300 Sight Range 16 Terrain Scan Density 10 Armor Coverage 150 Propulsion Shielding 33 Weapon Shielding 33 Evasion (%) 50 Item Schematics ----------------- None Robot Schematics ------------------ None Fabricated ------------ Nothing Alien Tech Used ----------------- None Achievements -------------- None Challenges ------------ None Game ------ Seed CoilBombardmentShockpuncher Manual? 0 Play Time 00:14:09 Cumulative 225.6 hours Start 2023.05.19 @ 19:51:37 End 2023.05.19 @ 20:14:45 Sessions 1 Manual Loads 0 Difficulty Rogue Special Mode None Game No. 688 Rogue 688 Adventurer 0 Explorer 0 Win Type - Total 10 Types 8/0/1/1/0/0/0/0/0 Lore% 82 Gallery% 81 Achievement% 72 Wizard Run 0 Options --------- ASCII 0 Keyboard 0 Movement Mouse Keybinds 0 Fullscreen 1 Font 16/SmallcapsGlow Map View 75x55 Tactical HUD 1 Map Filters NONE Filters NONE Steam 1 RUN: 18360adc-e565-402e-a201-1dee8205583e